[Event "Blixt-SM 2025"]
[Site "Norrköping, Sweden"]
[Date "2025.09.26"]
[Round "2.5"]
[White "Lindh, Fredrik"]
[Black "Odell Johansson, Leo"]
[Result "1/2-1/2"]
[TimeControl "3 min + 2 sec/move"]
[WhiteTitle "FM"]
[WhiteElo "2249"]
[BlackElo "2025"]

1. e4 {[%clk 00:03:02]} {[%emt 00:00:01]} c5 {[%clk 00:03:04]} 2. Nf3 {[%clk
00:03:03]} Nc6 {[%clk 00:03:05]} {[%emt 00:00:01]} 3. d4 {[%clk 00:03:04]} cxd4
4. Nxd4 {[%clk 00:03:04]} e5 {[%clk 00:03:07]} {[%emt 00:00:01]} 5. Nb5 {[%clk
00:03:05]} d6 {[%clk 00:03:08]} {[%emt 00:00:01]} 6. N1c3 {[%clk 00:03:06]} a6
{[%clk 00:03:10]} {[%emt 00:00:01]} 7. Na3 {[%clk 00:03:08]} Be7 {[%clk
00:03:11]} 8. Nd5 {[%clk 00:03:09]} {[%emt 00:00:01]} Nf6 {[%clk 00:03:11]}
{[%emt 00:00:01]} 9. Nxf6+ {[%clk 00:02:55]} {[%emt 00:00:15]} Bxf6 {[%clk
00:03:12]} {[%emt 00:00:02]} 10. Nc4 {[%clk 00:02:56]} {[%emt 00:00:02]} O-O
{[%clk 00:03:08]} {[%emt 00:00:05]} 11. a4 {[%clk 00:02:51]} {[%emt 00:00:07]}
Be6 {[%clk 00:02:36]} {[%emt 00:00:34]} 12. Be3 {[%clk 00:02:32]} {[%emt
00:00:21]} Qe7 {[%clk 00:00:29]} {[%emt 00:02:09]} 13. Nb6 {[%clk 00:01:36]}
{[%emt 00:00:58]} Rad8 {[%clk 00:00:29]} {[%emt 00:00:02]} 14. Nd5 {[%clk
00:01:36]} {[%emt 00:00:02]} Bxd5 {[%clk 00:00:30]} {[%emt 00:00:01]} 15. exd5
{[%clk 00:01:37]} {[%emt 00:00:02]} Nb8 {[%clk 00:00:13]} {[%emt 00:00:18]} 16.
Be2 {[%clk 00:01:27]} {[%emt 00:00:12]} Bg5 {[%clk 00:00:14]} 17. Bb6 {[%clk
00:01:28]} Rc8 {[%clk 00:00:16]} {[%emt 00:00:01]} 18. c3 {[%clk 00:01:14]}
{[%emt 00:00:16]} Nd7 {[%clk 00:00:17]} {[%emt 00:00:01]} 19. Ba5 {[%clk
00:00:57]} {[%emt 00:00:19]} Nc5 {[%clk 00:00:16]} {[%emt 00:00:03]} 20. O-O
{[%clk 00:00:53]} {[%emt 00:00:05]} f5 {[%clk 00:00:17]} 21. b4 {[%clk
00:00:51]} {[%emt 00:00:04]} Ne4 {[%clk 00:00:18]} {[%emt 00:00:02]} 22. c4
{[%clk 00:00:49]} {[%emt 00:00:04]} Nc3 {[%clk 00:00:18]} {[%emt 00:00:02]} 23.
Qe1 {[%clk 00:00:48]} {[%emt 00:00:03]} Nxe2+ {[%clk 00:00:17]} {[%emt
00:00:03]} 24. Qxe2 {[%clk 00:00:49]} {[%emt 00:00:01]} e4 {[%clk 00:00:16]}
{[%emt 00:00:03]} 25. Bb6 {[%clk 00:00:45]} {[%emt 00:00:06]} Qe5 {[%clk
00:00:16]} {[%emt 00:00:02]} 26. Rfd1 {[%clk 00:00:38]} {[%emt 00:00:09]} Qc3
{[%clk 00:00:18]} 27. c5 {[%clk 00:00:33]} {[%emt 00:00:06]} Qxb4 {[%clk
00:00:18]} {[%emt 00:00:02]} 28. Rdb1 {[%clk 00:00:28]} {[%emt 00:00:08]} Qc3
{[%clk 00:00:17]} {[%emt 00:00:03]} 29. cxd6 {[%clk 00:00:25]} {[%emt
00:00:05]} Rf7 {[%clk 00:00:12]} {[%emt 00:00:06]} 30. g3 {[%clk 00:00:09]}
{[%emt 00:00:18]} Rd7 {[%clk 00:00:13]} {[%emt 00:00:01]} 31. Bc7 {[%clk
00:00:10]} {[%emt 00:00:02]} Qc5 {[%clk 00:00:12]} {[%emt 00:00:02]} 32. Rxb7
{[%clk 00:00:10]} {[%emt 00:00:03]} Qxd5 {[%clk 00:00:11]} {[%emt 00:00:03]} 33.
Rab1 {[%clk 00:00:10]} {[%emt 00:00:02]} h6 {[%clk 00:00:08]} {[%emt 00:00:05]}
34. Qxa6 {[%clk 00:00:10]} {[%emt 00:00:01]} e3 {[%clk 00:00:08]} {[%emt
00:00:02]} 35. Qe2 {[%clk 00:00:07]} {[%emt 00:00:05]} exf2+ {[%clk 00:00:08]}
{[%emt 00:00:02]} 36. Qxf2 {[%clk 00:00:08]} {[%emt 00:00:01]} Qd3 {[%clk
00:00:06]} {[%emt 00:00:04]} 37. Rb8 {[%clk 00:00:07]} {[%emt 00:00:03]} Rxb8
{[%clk 00:00:07]} 38. Rxb8+ {[%clk 00:00:08]} {[%emt 00:00:01]} Kh7 {[%clk
00:00:08]} 39. Kg2 {[%clk 00:00:07]} {[%emt 00:00:03]} Be3 {[%clk 00:00:09]}
{[%emt 00:00:01]} 40. Qb2 {[%clk 00:00:07]} {[%emt 00:00:02]} Qe4+ {[%clk
00:00:10]} {[%emt 00:00:02]} 41. Kh3 {[%clk 00:00:06]} {[%emt 00:00:02]} Qg4+
{[%clk 00:00:09]} {[%emt 00:00:03]} 42. Kg2 {[%clk 00:00:07]} {[%emt 00:00:01]}
Qe4+ {[%clk 00:00:08]} {[%emt 00:00:03]} 43. Kh3 {[%clk 00:00:08]} {[%emt
00:00:01]} Qg4+ {[%clk 00:00:04]} {[%emt 00:00:06]} 44. Kg2 {[%clk 00:00:09]}
Qe4+ {[%clk 00:00:05]} {[%emt 00:00:01]} 1/2-1/2

[ePGN "0.1;DGT LiveChess/2.2.7"]

[Event "Blixt-SM 2025"]
[Site "Norrköping, Sweden"]
[Date "2025.09.26"]
[Round "4.1"]
[White "Seo, Jung Min"]
[Black "Wernberg, Hugo"]
[Result "1-0"]
[TimeControl "3 min + 2 sec/move"]
[WhiteTitle "IM"]
[BlackTitle "FM"]
[WhiteElo "2480"]
[BlackElo "2285"]

1. d4 {[%clk 00:03:03]} Nf6 {[%clk 00:03:04]} {[%emt 00:00:01]} 2. Bg5 {[%clk
00:03:05]} c5 {[%clk 00:03:05]} {[%emt 00:00:01]} 3. d5 {[%clk 00:03:05]}
{[%emt 00:00:02]} d6 {[%clk 00:03:06]} 4. Nc3 {[%clk 00:03:05]} {[%emt
00:00:02]} h6 {[%clk 00:03:07]} 5. Bf4 {[%clk 00:02:44]} {[%emt 00:00:23]} g6
{[%clk 00:03:06]} {[%emt 00:00:04]} 6. e4 {[%clk 00:02:44]} {[%emt 00:00:02]}
Bg7 {[%clk 00:03:07]} 7. Be2 {[%clk 00:02:41]} {[%emt 00:00:04]} Nbd7 {[%clk
00:03:07]} {[%emt 00:00:02]} 8. a4 {[%clk 00:02:37]} {[%emt 00:00:07]} O-O
{[%clk 00:03:03]} {[%emt 00:00:06]} 9. Nf3 {[%clk 00:02:38]} Nh5 {[%clk
00:02:52]} {[%emt 00:00:13]} 10. Be3 {[%clk 00:02:36]} {[%emt 00:00:03]} f5
{[%clk 00:02:44]} {[%emt 00:00:10]} 11. exf5 {[%clk 00:02:23]} {[%emt
00:00:15]} gxf5 {[%clk 00:02:46]} 12. Nh4 {[%clk 00:02:22]} {[%emt 00:00:04]}
f4 {[%clk 00:02:25]} {[%emt 00:00:22]} 13. Bd2 {[%clk 00:02:22]} {[%emt
00:00:02]} Nhf6 {[%clk 00:02:17]} {[%emt 00:00:10]} 14. Ng6 {[%clk 00:02:14]}
{[%emt 00:00:10]} Re8 {[%clk 00:02:19]} 15. Bxf4 {[%clk 00:02:05]} {[%emt
00:00:12]} Nf8 {[%clk 00:02:03]} {[%emt 00:00:18]} 16. Nxf8 {[%clk 00:02:04]}
{[%emt 00:00:02]} Rxf8 {[%clk 00:02:03]} {[%emt 00:00:02]} 17. Qd2 {[%clk
00:02:05]} {[%emt 00:00:01]} h5 {[%clk 00:01:45]} {[%emt 00:00:20]} 18. O-O
{[%clk 00:02:01]} {[%emt 00:00:06]} Bf5 {[%clk 00:01:36]} {[%emt 00:00:11]} 19.
Rae1 {[%clk 00:01:56]} {[%emt 00:00:07]} Qe8 {[%clk 00:01:27]} {[%emt
00:00:11]} 20. Bd3 {[%clk 00:01:44]} {[%emt 00:00:15]} Qg6 {[%clk 00:00:58]}
{[%emt 00:00:31]} 21. Bxf5 {[%clk 00:01:43]} {[%emt 00:00:03]} Qxf5 {[%clk
00:00:58]} {[%emt 00:00:02]} 22. Rxe7 {[%clk 00:01:24]} {[%emt 00:00:20]} Ng4
{[%clk 00:00:36]} {[%emt 00:00:24]} 23. Bxd6 {[%clk 00:00:34]} {[%emt
00:00:53]} Bd4 {[%clk 00:00:32]} {[%emt 00:00:05]} 24. Re2 {[%clk 00:00:25]}
{[%emt 00:00:12]} Rf6 {[%clk 00:00:15]} {[%emt 00:00:19]} 25. Bg3 {[%clk
00:00:25]} Raf8 {[%clk 00:00:07]} {[%emt 00:00:10]} 26. Nd1 {[%clk 00:00:26]}
{[%emt 00:00:02]} h4 {[%clk 00:00:05]} {[%emt 00:00:03]} 27. Bxh4 {[%clk
00:00:26]} {[%emt 00:00:02]} Rh6 {[%clk 00:00:06]} {[%emt 00:00:01]} 28. Bg3
{[%clk 00:00:15]} {[%emt 00:00:13]} Qh5 {[%clk 00:00:08]} 29. h3 {[%clk
00:00:15]} {[%emt 00:00:02]} Nf6 {[%clk 00:00:09]} 30. c3 {[%clk 00:00:13]}
{[%emt 00:00:06]} Bxf2+ {[%clk 00:00:03]} 31. Rexf2 {[%clk 00:00:11]} {[%emt
00:00:11]} Rg6 {[%clk 00:00:04]} 32. Qd3 {[%clk 00:00:09]} {[%emt 00:00:05]}
Rf7 {[%clk 00:00:03]} 33. Ne3 {[%clk 00:00:07]} {[%emt 00:00:08]} Qh6 {[%clk
00:00:05]} {[%emt 00:00:09]} 34. Rf3 {[%clk 00:00:06]} Qg7 {[%clk 00:00:04]}
{[%emt 00:00:06]} 35. Ng4 {[%clk 00:00:06]} 1-0

[Event "Blixt-SM 2025"]
[Site "Norrköping, Sweden"]
[Date "2025.09.26"]
[Round "5.7"]
[White "Persson, Richard"]
[Black "Grahn, Vidar"]
[Result "1-0"]
[TimeControl "3 min + 2 sec/move"]
[WhiteTitle "CM"]
[BlackTitle "FM"]
[WhiteElo "2106"]
[BlackElo "2236"]

1. e4 {[%clk 00:03:01]} {[%emt 00:00:02]} c5 {[%clk 00:03:04]} 2. Be2 {[%clk
00:02:58]} {[%emt 00:00:05]} Nc6 {[%clk 00:03:03]} {[%emt 00:00:03]} 3. f4
{[%clk 00:02:58]} {[%emt 00:00:01]} e6 {[%clk 00:02:59]} {[%emt 00:00:07]} 4.
Nf3 {[%emt 00:00:09]} d6 {[%clk 00:02:49]} {[%emt 00:00:07]} 5. O-O {[%clk
00:02:53]} {[%emt 00:00:04]} g6 {[%clk 00:02:50]} {[%emt 00:00:02]} 6. d3
{[%clk 00:02:52]} {[%emt 00:00:02]} Bg7 {[%clk 00:02:52]} 7. c3 {[%clk
00:02:53]} {[%emt 00:00:02]} Nge7 {[%clk 00:02:52]} 8. Na3 {[%clk 00:02:45]}
{[%emt 00:00:10]} O-O {[%clk 00:02:52]} {[%emt 00:00:03]} 9. Qe1 {[%clk
00:02:44]} {[%emt 00:00:03]} Rb8 {[%clk 00:02:51]} {[%emt 00:00:03]} 10. Bd2
{[%clk 00:02:44]} {[%emt 00:00:02]} b5 {[%clk 00:02:48]} {[%emt 00:00:04]} 11.
Nc2 {[%clk 00:02:40]} {[%emt 00:00:07]} a5 {[%clk 00:02:44]} {[%emt 00:00:06]}
12. a3 {[%clk 00:02:24]} {[%emt 00:00:18]} d5 {[%clk 00:02:32]} {[%emt
00:00:15]} 13. Qh4 {[%clk 00:02:07]} {[%emt 00:00:18]} b4 {[%clk 00:02:09]}
{[%emt 00:00:25]} 14. axb4 {[%clk 00:02:07]} {[%emt 00:00:02]} axb4 {[%clk
00:02:11]} 15. e5 {[%clk 00:01:40]} {[%emt 00:00:29]} bxc3 {[%clk 00:02:02]}
{[%emt 00:00:11]} 16. bxc3 {[%clk 00:01:32]} {[%emt 00:00:10]} Rb2 {[%clk
00:01:57]} {[%emt 00:00:07]} 17. Na3 {[%clk 00:01:18]} {[%emt 00:00:15]} d4
{[%clk 00:01:09]} {[%emt 00:00:51]} 18. c4 {[%clk 00:01:00]} {[%emt 00:00:20]}
Nf5 {[%clk 00:01:01]} {[%emt 00:00:10]} 19. Qxd8 {[%clk 00:00:59]} {[%emt
00:00:04]} Rxd8 {[%clk 00:01:01]} {[%emt 00:00:02]} 20. Rfb1 {[%clk 00:00:54]}
{[%emt 00:00:06]} Rxb1+ {[%clk 00:00:55]} {[%emt 00:00:08]} 21. Rxb1 {[%clk
00:00:52]} {[%emt 00:00:04]} Bd7 {[%clk 00:00:40]} {[%emt 00:00:17]} 22. Nb5
{[%clk 00:00:42]} {[%emt 00:00:12]} Rb8 {[%clk 00:00:38]} {[%emt 00:00:03]} 23.
Ra1 {[%clk 00:00:42]} {[%emt 00:00:03]} Nb4 {[%clk 00:00:37]} {[%emt 00:00:03]}
24. g4 {[%clk 00:00:33]} {[%emt 00:00:10]} Bxb5 {[%clk 00:00:34]} {[%emt
00:00:06]} 25. gxf5 {[%clk 00:00:17]} {[%emt 00:00:19]} Bc6 {[%clk 00:00:33]}
{[%emt 00:00:03]} 26. f6 {[%clk 00:00:16]} {[%emt 00:00:02]} Bh6 {[%clk
00:00:31]} {[%emt 00:00:04]} 27. Ng5 {[%clk 00:00:15]} {[%emt 00:00:03]} Ra8
{[%clk 00:00:12]} {[%emt 00:00:21]} 28. Rb1 {[%clk 00:00:07]} {[%emt 00:00:10]}
Bxg5 {[%clk 00:00:07]} {[%emt 00:00:07]} 29. fxg5 {[%clk 00:00:08]} {[%emt
00:00:01]} Ra4 {[%clk 00:00:04]} {[%emt 00:00:06]} 30. Kf2 {[%clk 00:00:07]}
{[%emt 00:00:02]} Kf8 {[%clk 00:00:04]} {[%emt 00:00:02]} 31. Ke1 {[%clk
00:00:06]} {[%emt 00:00:03]} Ke8 {[%clk 00:00:06]} 32. Bxb4 {[%clk 00:00:05]}
{[%emt 00:00:03]} Rxb4 {[%clk 00:00:04]} {[%emt 00:00:04]} 33. Rxb4 {[%clk
00:00:06]} cxb4 {[%clk 00:00:05]} 34. Kd2 {[%clk 00:00:07]} Ba4 {[%clk
00:00:06]} 35. Bd1 {[%clk 00:00:08]} {[%emt 00:00:01]} Bxd1 {[%clk 00:00:06]}
{[%emt 00:00:02]} 36. Kxd1 {[%clk 00:00:09]} Kd7 37. Kc2 Kc6 {[%clk 00:00:09]}
38. Kb3 {[%clk 00:00:11]} {[%emt 00:00:01]} Kc5 {[%clk 00:00:09]} {[%emt
00:00:02]} 39. h3 {[%clk 00:00:11]} {[%emt 00:00:02]} Kc6 {[%clk 00:00:09]}
{[%emt 00:00:03]} 40. Kxb4 {[%clk 00:00:12]} Kb6 {[%clk 00:00:10]} 41. c5+
{[%clk 00:00:13]} 1-0

[Event "Blixt-SM 2025"]
[Site "Norrköping, Sweden"]
[Date "2025.09.26"]
[Round "7.3"]
[White "Sandberg, Lucas"]
[Black "Persson, Richard"]
[Result "0-1"]
[TimeControl "3 min + 2 sec/move"]
[BlackTitle "CM"]
[WhiteElo "2268"]
[BlackElo "2106"]

1. Nc3 {[%clk 00:03:02]} {[%emt 00:00:01]} d5 {[%clk 00:02:59]} {[%emt
00:00:06]} 2. e4 {[%clk 00:03:03]} d4 {[%clk 00:02:58]} {[%emt 00:00:03]} 3.
Nce2 {[%clk 00:03:04]} e5 {[%clk 00:02:55]} {[%emt 00:00:05]} 4. d3 {[%clk
00:03:05]} Be6 {[%clk 00:02:45]} {[%emt 00:00:13]} 5. f4 {[%clk 00:03:05]} f6
{[%clk 00:02:34]} {[%emt 00:00:13]} 6. Nf3 {[%clk 00:03:04]} {[%emt 00:00:02]}
Nc6 {[%clk 00:02:35]} {[%emt 00:00:03]} 7. g3 {[%clk 00:03:05]} Qd7 {[%clk
00:02:29]} {[%emt 00:00:07]} 8. Bg2 {[%clk 00:03:06]} {[%emt 00:00:01]} O-O-O
{[%clk 00:02:18]} {[%emt 00:00:14]} 9. O-O {[%clk 00:03:05]} {[%emt 00:00:02]}
h5 {[%clk 00:02:07]} {[%emt 00:00:13]} 10. f5 {[%clk 00:03:05]} {[%emt
00:00:02]} Bf7 {[%clk 00:02:08]} {[%emt 00:00:01]} 11. a3 {[%clk 00:03:06]}
{[%emt 00:00:02]} Nge7 {[%clk 00:01:57]} {[%emt 00:00:13]} 12. b4 {[%clk
00:03:02]} {[%emt 00:00:05]} g6 {[%clk 00:01:50]} {[%emt 00:00:09]} 13. fxg6
{[%clk 00:02:54]} {[%emt 00:00:11]} Nxg6 {[%clk 00:01:45]} {[%emt 00:00:07]} 14.
b5 {[%clk 00:02:49]} {[%emt 00:00:07]} Nce7 {[%clk 00:01:37]} {[%emt 00:00:09]}
15. a4 {[%clk 00:02:45]} {[%emt 00:00:07]} h4 {[%clk 00:01:32]} {[%emt
00:00:07]} 16. Qe1 {[%clk 00:02:33]} {[%emt 00:00:14]} Bh6 {[%clk 00:01:10]}
{[%emt 00:00:23]} 17. Bxh6 {[%clk 00:02:08]} {[%emt 00:00:28]} Rxh6 {[%clk
00:01:10]} {[%emt 00:00:02]} 18. Nxh4 {[%clk 00:01:43]} {[%emt 00:00:26]} Nxh4
{[%clk 00:01:09]} {[%emt 00:00:03]} 19. gxh4 {[%clk 00:01:45]} Be6 {[%clk
00:01:02]} {[%emt 00:00:10]} 20. Ng3 {[%clk 00:01:41]} {[%emt 00:00:06]} Rxh4
{[%clk 00:00:31]} {[%emt 00:00:32]} 21. Nf5 {[%clk 00:01:41]} {[%emt 00:00:02]}
Rg4 {[%clk 00:00:33]} {[%emt 00:00:01]} 22. h3 {[%clk 00:01:27]} {[%emt
00:00:16]} Rg6 {[%clk 00:00:32]} {[%emt 00:00:03]} 23. Kh2 {[%clk 00:01:21]}
{[%emt 00:00:07]} Rh8 {[%clk 00:00:33]} 24. Qf2 {[%clk 00:01:18]} {[%emt
00:00:05]} Bxf5 25. exf5 {[%clk 00:01:19]} Rg5 {[%clk 00:00:28]} {[%emt
00:00:03]} 26. Qf3 {[%clk 00:01:11]} {[%emt 00:00:10]} c6 {[%clk 00:00:28]}
{[%emt 00:00:03]} 27. bxc6 {[%clk 00:01:08]} {[%emt 00:00:05]} Qxc6 {[%clk
00:00:24]} {[%emt 00:00:06]} 28. Qe2 {[%clk 00:01:03]} {[%emt 00:00:07]} Qc7
{[%clk 00:00:22]} {[%emt 00:00:03]} 29. Rab1 {[%clk 00:01:03]} {[%emt
00:00:03]} Nc6 {[%clk 00:00:19]} {[%emt 00:00:05]} 30. Rb5 {[%clk 00:00:52]}
{[%emt 00:00:12]} e4+ {[%clk 00:00:18]} {[%emt 00:00:03]} 31. Kh1 {[%clk
00:00:52]} {[%emt 00:00:03]} Rg3 {[%clk 00:00:09]} {[%emt 00:00:10]} 32. Qxe4
{[%clk 00:00:33]} {[%emt 00:00:22]} Qg7 {[%clk 00:00:11]} 33. Qe6+ {[%clk
00:00:10]} {[%emt 00:00:24]} Kd8 {[%clk 00:00:04]} {[%emt 00:00:08]} 34. Qd6+
{[%clk 00:00:09]} {[%emt 00:00:03]} Kc8 {[%clk 00:00:05]} {[%emt 00:00:02]} 35.
Qe6+ {[%clk 00:00:03]} {[%emt 00:00:08]} Kb8 {[%clk 00:00:06]} 36. Rxb7+ {[%clk
00:00:03]} {[%emt 00:00:02]} Qxb7 {[%clk 00:00:06]} {[%emt 00:00:02]} 37. Qd6+
{[%clk 00:00:03]} {[%emt 00:00:03]} Qc7 {[%emt 00:00:04]} 0-1

[Event "Blixt-SM 2025"]
[Site "Norrköping, Sweden"]
[Date "2025.09.26"]
[Round "8.9"]
[White "Bohman Karlholm, Adrian"]
[Black "Sandberg, Lucas"]
[Result "1/2-1/2"]
[TimeControl "3 min + 2 sec/move"]
[WhiteElo "2102"]
[BlackElo "2268"]

1. d4 {[%clk 00:03:03]} g6 {[%clk 00:03:04]} 2. c4 {[%clk 00:03:03]} {[%emt
00:00:02]} Bg7 {[%clk 00:03:05]} 3. Nf3 {[%clk 00:03:04]} c5 {[%clk 00:03:07]}
4. d5 {[%clk 00:03:04]} {[%emt 00:00:02]} d6 {[%clk 00:03:06]} {[%emt
00:00:04]} 5. g3 {[%clk 00:03:03]} {[%emt 00:00:02]} Nf6 {[%clk 00:03:06]}
{[%emt 00:00:01]} 6. Bg2 {[%clk 00:03:04]} {[%emt 00:00:02]} O-O {[%clk
00:03:07]} {[%emt 00:00:01]} 7. O-O {[%clk 00:03:04]} {[%emt 00:00:02]} b5
{[%clk 00:03:08]} 8. cxb5 {[%clk 00:03:02]} {[%emt 00:00:04]} a6 {[%clk
00:03:10]} 9. bxa6 {[%clk 00:03:01]} Bxa6 {[%clk 00:03:11]} 10. Nc3 {[%clk
00:03:01]} {[%emt 00:00:02]} Nbd7 {[%clk 00:03:12]} {[%emt 00:00:02]} 11. Qc2
{[%clk 00:03:00]} {[%emt 00:00:02]} Qa5 {[%clk 00:03:13]} {[%emt 00:00:02]} 12.
Bd2 {[%clk 00:03:00]} {[%emt 00:00:01]} Rfb8 {[%clk 00:03:13]} {[%emt
00:00:02]} 13. b3 {[%clk 00:02:53]} {[%emt 00:00:08]} Ng4 {[%clk 00:03:10]}
{[%emt 00:00:06]} 14. Rab1 {[%clk 00:02:51]} {[%emt 00:00:05]} Nge5 {[%clk
00:03:07]} {[%emt 00:00:04]} 15. Nxe5 {[%clk 00:02:48]} {[%emt 00:00:05]} Nxe5
{[%clk 00:03:07]} {[%emt 00:00:02]} 16. h3 {[%clk 00:02:23]} {[%emt 00:00:27]}
Qc7 {[%clk 00:02:50]} {[%emt 00:00:19]} 17. a4 {[%clk 00:02:19]} {[%emt
00:00:06]} Rb7 {[%clk 00:02:48]} {[%emt 00:00:04]} 18. f4 {[%clk 00:02:12]}
{[%emt 00:00:09]} Nd7 {[%clk 00:02:49]} {[%emt 00:00:02]} 19. Rfe1 {[%clk
00:02:04]} {[%emt 00:00:09]} Rab8 {[%clk 00:02:42]} {[%emt 00:00:09]} 20. e4
{[%clk 00:02:03]} {[%emt 00:00:02]} Bd4+ {[%clk 00:02:34]} {[%emt 00:00:10]} 21.
Kh2 {[%clk 00:02:02]} {[%emt 00:00:04]} h5 {[%clk 00:02:35]} {[%emt 00:00:01]}
22. Ne2 {[%clk 00:01:46]} {[%emt 00:00:18]} Bf2 {[%clk 00:02:32]} {[%emt
00:00:04]} 23. Rf1 {[%clk 00:01:39]} {[%emt 00:00:10]} Bxe2 {[%clk 00:02:15]}
{[%emt 00:00:19]} 24. Rxf2 {[%clk 00:01:40]} {[%emt 00:00:01]} Ba6 {[%clk
00:02:16]} {[%emt 00:00:02]} 25. Bc3 {[%clk 00:01:37]} {[%emt 00:00:04]} Bc4
{[%clk 00:02:11]} {[%emt 00:00:07]} 26. e5 {[%clk 00:01:19]} {[%emt 00:00:20]}
Bxb3 {[%clk 00:02:07]} {[%emt 00:00:06]} 27. Qd2 {[%clk 00:01:13]} {[%emt
00:00:07]} Bxa4 {[%clk 00:02:03]} {[%emt 00:00:08]} 28. Rxb7 {[%clk 00:01:02]}
{[%emt 00:00:12]} Qxb7 {[%clk 00:02:00]} {[%emt 00:00:06]} 29. e6 {[%clk
00:01:01]} {[%emt 00:00:02]} Nf6 {[%clk 00:02:00]} {[%emt 00:00:02]} 30. exf7+
{[%clk 00:00:51]} Kxf7 {[%clk 00:02:01]} 31. f5 {[%clk 00:00:49]} {[%emt
00:00:04]} Rg8 {[%clk 00:01:22]} {[%emt 00:00:40]} 32. fxg6+ {[%clk 00:00:44]}
{[%emt 00:00:08]} Rxg6 {[%clk 00:01:24]} 33. Be4 {[%clk 00:00:43]} {[%emt
00:00:03]} Bb3 {[%clk 00:00:42]} {[%emt 00:00:44]} 34. Bxg6+ {[%clk 00:00:37]}
{[%emt 00:00:07]} Kxg6 {[%clk 00:00:43]} 35. Bxf6 {[%clk 00:00:33]} {[%emt
00:00:06]} exf6 {[%clk 00:00:45]} 36. Qc3 {[%clk 00:00:32]} {[%emt 00:00:02]}
f5 {[%clk 00:00:40]} {[%emt 00:00:07]} 37. g4 {[%clk 00:00:27]} {[%emt
00:00:06]} hxg4 {[%clk 00:00:37]} {[%emt 00:00:06]} 38. hxg4 {[%clk 00:00:28]}
{[%emt 00:00:02]} Qxd5 {[%clk 00:00:37]} {[%emt 00:00:02]} 39. Rxf5 {[%clk
00:00:18]} {[%emt 00:00:11]} Qe6 {[%clk 00:00:38]} 40. Qh3 {[%clk 00:00:06]}
{[%emt 00:00:14]} Qe2+ {[%clk 00:00:33]} {[%emt 00:00:07]} 41. Kg3 {[%clk
00:00:07]} Qe1+ {[%clk 00:00:34]} 42. Rf2 {[%clk 00:00:07]} {[%emt 00:00:01]}
Qg1+ {[%clk 00:00:30]} {[%emt 00:00:06]} 43. Rg2 {[%clk 00:00:07]} {[%emt
00:00:03]} Qe3+ {[%clk 00:00:31]} {[%emt 00:00:02]} 44. Kh2 {[%clk 00:00:06]}
{[%emt 00:00:01]} Qxh3+ {[%clk 00:00:32]} {[%emt 00:00:02]} 45. Kxh3 {[%clk
00:00:07]} {[%emt 00:00:01]} d5 {[%clk 00:00:30]} {[%emt 00:00:04]} 46. Kg3
{[%clk 00:00:07]} {[%emt 00:00:02]} c4 {[%clk 00:00:30]} {[%emt 00:00:03]} 47.
Kf4 {[%clk 00:00:06]} {[%emt 00:00:03]} c3 {[%clk 00:00:31]} 48. Ke5 {[%clk
00:00:04]} {[%emt 00:00:03]} c2 {[%clk 00:00:32]} {[%emt 00:00:02]} 49. Rg1
{[%clk 00:00:06]} Kg5 {[%clk 00:00:33]} {[%emt 00:00:02]} 50. Rc1 {[%clk
00:00:06]} {[%emt 00:00:01]} Kxg4 {[%clk 00:00:33]} {[%emt 00:00:02]} 51. Rxc2
{[%clk 00:00:07]} {[%emt 00:00:01]} Bxc2 {[%clk 00:00:34]} {[%emt 00:00:02]} 52.
Kxd5 {[%clk 00:00:08]} 1/2-1/2

[Event "Blixt-SM 2025"]
[Site "Norrköping, Sweden"]
[Date "2025.09.26"]
[Round "10.5"]
[White "Smith, Axel"]
[Black "Karlsson, Stefan 2005"]
[Result "1-0"]
[TimeControl "3 min + 2 sec/move"]
[WhiteTitle "GM"]
[WhiteElo "2431"]
[BlackElo "2112"]

1. c4 {[%clk 00:03:03]} {[%emt 00:09:28]} g6 {[%clk 00:03:02]} {[%emt
00:00:02]} 2. d4 {[%clk 00:03:03]} {[%emt 00:00:02]} Bg7 {[%clk 00:03:03]} 3.
e4 {[%clk 00:03:05]} d6 {[%clk 00:02:52]} {[%emt 00:00:14]} 4. Nc3 {[%clk
00:03:06]} {[%emt 00:00:02]} Nf6 {[%clk 00:02:53]} 5. Be2 {[%clk 00:03:07]}
{[%emt 00:00:02]} O-O {[%clk 00:02:53]} {[%emt 00:00:01]} 6. Be3 {[%clk
00:03:09]} a5 {[%clk 00:02:54]} {[%emt 00:00:02]} 7. Nf3 {[%clk 00:03:10]} Ng4
{[%clk 00:02:50]} {[%emt 00:00:06]} 8. Bg5 {[%clk 00:03:11]} h6 {[%clk
00:02:49]} {[%emt 00:00:03]} 9. Bh4 {[%clk 00:03:12]} Na6 {[%clk 00:02:49]}
{[%emt 00:00:02]} 10. h3 {[%clk 00:02:59]} {[%emt 00:00:15]} Nf6 {[%clk
00:02:50]} 11. O-O {[%clk 00:02:39]} {[%emt 00:00:22]} g5 {[%clk 00:02:17]}
{[%emt 00:00:36]} 12. Bg3 {[%clk 00:02:40]} {[%emt 00:00:01]} Nh5 {[%clk
00:02:16]} {[%emt 00:00:02]} 13. Bh2 {[%clk 00:02:39]} {[%emt 00:00:03]} Nf4
{[%clk 00:02:14]} {[%emt 00:00:04]} 14. Re1 {[%clk 00:02:12]} {[%emt 00:00:29]}
e5 {[%clk 00:01:29]} {[%emt 00:00:47]} 15. dxe5 {[%clk 00:01:46]} {[%emt
00:00:28]} dxe5 {[%clk 00:01:27]} {[%emt 00:00:05]} 16. Bxf4 {[%clk 00:01:08]}
{[%emt 00:00:40]} exf4 {[%clk 00:01:06]} {[%emt 00:00:23]} 17. e5 {[%clk
00:01:06]} {[%emt 00:00:04]} c6 {[%clk 00:00:59]} {[%emt 00:00:08]} 18. Ne4
{[%clk 00:00:54]} {[%emt 00:00:15]} Qb6 {[%clk 00:00:36]} {[%emt 00:00:25]} 19.
Qc2 {[%clk 00:00:45]} {[%emt 00:00:11]} Be6 {[%clk 00:00:22]} {[%emt 00:00:15]}
20. Rad1 {[%clk 00:00:35]} {[%emt 00:00:12]} Nc5 {[%clk 00:00:15]} {[%emt
00:00:09]} 21. Nf6+ {[%clk 00:00:19]} {[%emt 00:00:19]} Bxf6 22. exf6 {[%clk
00:00:20]} Nd7 {[%clk 00:00:04]} {[%emt 00:00:05]} 23. h4 {[%clk 00:00:17]}
{[%emt 00:00:06]} Qc5 {[%clk 00:00:03]} {[%emt 00:00:03]} 24. hxg5 {[%clk
00:00:15]} {[%emt 00:00:05]} hxg5 {[%clk 00:00:05]} 25. Nd4 {[%clk 00:00:16]}
Nxf6 {[%clk 00:00:04]} {[%emt 00:00:03]} 26. Nxe6 {[%clk 00:00:17]} fxe6 {[%clk
00:00:05]} 27. Qg6+ {[%clk 00:00:18]} {[%emt 00:00:01]} Kh8 {[%clk 00:00:05]}
{[%emt 00:00:01]} 28. Qh6+ {[%clk 00:00:17]} {[%emt 00:00:03]} Nh7 29. Bd3 Rf7
{[%clk 00:00:05]} {[%emt 00:00:03]} 30. Rxe6 {[%clk 00:00:19]} {[%emt
00:00:03]} Rd8 {[%clk 00:00:04]} {[%emt 00:00:03]} 31. Rf6 {[%clk 00:00:10]}
{[%emt 00:00:10]} Rxd3 {[%emt 00:00:03]} 32. Rxd3 Rxf6 {[%emt 00:00:01]} 33.
Rd8+ Rf8 34. Rd7 {[%emt 00:00:02]} 1-0